Workbook

Sheet Problem
A1: Free Practice Problems for Casualty Actuarial Society Exam 7
A2: G. Stolyarov II, CPCU, ARe, ARC, AIS, AIE
A3: http://rationalargumentator.com/actuaryguide/7-study-guide.html
A4: Inexhaustible Exam-Style Practice
A5: Based on Problem 2 - Spring 2011 CAS Exam 7
A7: You are given the following loss-reserving information as of December 31, 2034:
B9: Accident Year | C9: On-Level Earned Premium | D9: Growth Function | E9: Reported Losses
B10: 2032 | C10: =56300*D31 -> 39722.3249 | D10: =(30^C20)/(30^C20+E20^C20) -> 0.6633347581 | E10: =C10*(0.25+D31)*0.6 -> 22773.94123
B11: 2033 | C11: =43000+5600*D31 -> 46951.06606 | D11: =(18^C20)/(18^C20+E20^C20) -> 0.4774972369 | E11: =C11*0.7-2000*(1-D31) -> 32276.84127
B12: 2034 | C12: =60000*(1-D31)+20000 -> 37667.14931 | D12: =(6^C20)/(6^C20+E20^C20) -> 0.1490154994 | E12: =0.14*E10+0.25*5400*D31+0.3*C12 -> 15440.9857
A14: Parameter standard deviation for the total estimated unpaid claims is | E14: =900*(1-D31)+100 -> 365.0072396
A15: The expected accident-year loss-emergence pattern (growth function) can be approximated by a loglogistic function of the form G(x│ω, θ) = (x^ω)/(x^ω + θ^ω), where x denotes time in months from the average accident date to the evaluation date, and G is the growth function describing cumulative percent reported.
A19: The maximum likelihood estimates of the parameters are
B20: ω = | C20: =1+D31/1.4 -> 1.503962508 | D20: θ = | E20: =D31*20+5 -> 19.11095023
A22: The actual incremental loss emergence follows an over-disersed Poisson distribution with scaling factor σ^2 =
E23: =50*D31*(1-D31)+1 -> 11.38751102
A25: (a) Using a truncation point of | C25: =IF(D31<0.25, 4, IF(D31<0.5, 5, IF(D31<0.75, 6, 7))) -> 6 | D25: years, estimate the total unpaid claims using the Cape Cod method.
A28: (b) Calculate the coefficient of variation of the total unpaid claims estimated in part (a) above.
A30: TO RE-RANDOMIZE THE VALUES FOR THIS PROBLEM, CLICK ON THE FORMULA IN THE RED BOX AND PRESS "ENTER". That is all you need to do.
D31: =StaticRand() -> 0.7055475116

Sheet Solution
A1: Inexhaustible Exam-Style Practice
A2: Based on Problem 2 - Spring 2011 CAS Exam 7
A3: Solution (a)
A4: Accident Year | B4: (1) On-Level Earned Premium | C4: (2) Age at 12/31/2034 | D4: (3) Average Age | E4: (4) Growth Function | F4: (5) = (1)*(4) = (On-Level Earned Premium) * (Growth Function) | G4: (6) Reported Losses | H4: (7) Expected Loss Ratio = ELR = (Sum of (6))/(Sum of (5)
A5: 2032 | B5: =Problem!C10 -> 39722.3249 | C5: 36 | D5: 30 | E5: =Problem!D10 -> 0.6633347581 | F5: =B5*E5 -> 26349.19878 | G5: =Problem!E10 -> 22773.94123
A6: 2033 | B6: =Problem!C11 -> 46951.06606 | C6: 24 | D6: 18 | E6: =Problem!D11 -> 0.4774972369 | F6: =B6*E6 -> 22419.00432 | G6: =Problem!E11 -> 32276.84127
A7: 2034 | B7: =Problem!C12 -> 37667.14931 | C7: 12 | D7: 6 | E7: =Problem!D12 -> 0.1490154994 | F7: =B7*E7 -> 5612.989064 | G7: =Problem!E12 -> 15440.9857
A8: TOTAL | B8: =SUM(B5:B7) -> 124340.5403 | F8: =SUM(F5:F7) -> 54381.19216 | G8: =SUM(G5:G7) -> 70491.7682 | H8: =G8/F8 -> 1.296252719
B10: (8) Years at Truncation Point | C10: (9) Age in Months at Truncation Point | D10: (10) Average Age in Months at Truncation Point = (9) - 6
B11: =Problem!C25 -> 6 | C11: =B11*12 -> 72 | D11: =C11-6 -> 66
D12: ω = | E12: =Problem!C20 -> 1.503962508 | F12: θ = | G12: =Problem!E20 -> 19.11095023
A13: Growth function for truncation = (x^ω)/(x^ω + θ^ω), where x is the average age in months at truncation point.
A14: Growth function for truncation = | C14: =(D11^E12)/(D11^E12+G12^E12) -> 0.8657626156
A16: Accident Year | B16: (10) Growth Function for Truncation Point - Growth Function at 12/31/2034 | C16: Estimated Reserves = (1)*(7)*(10)
A17: 2032 | B17: =C14-E5 -> 0.2024278575 | C17: =B5*H8*B17 -> 10423.04513
A18: 2033 | B18: =C14-E6 -> 0.3882653787 | C18: =B6*H8*B18 -> 23630.00452
A19: 2034 | B19: =C14-E7 -> 0.7167471162 | C19: =B7*H8*B19 -> 34995.99841
A20: TOTAL | C20: =SUM(C17:C19) -> 69049.04806 | D20: <<< ANSWER
A22: Solution (b)
A23: Process Variance = (σ^2)*E(Reserves) = | C23: =Problem!E23 -> 11.38751102 | D23: * | E23: =C20 -> 69049.04806 | F23: = | G23: =C23*E23 -> 786296.796
A24: Parameter Variance = (Parameter Standard Deviation)^2 = | D24: =Problem!E14 -> 365.0072396 | E24: ^2 = | G24: =D24^2 -> 133230.2849
C25: Total Variance = Process Variance + Parameter Variance = | G25: =G23+G24 -> 919527.081
C26: Total Standard Deviation = (Total Variance)^0.5 = | G26: =G25^0.5 -> 958.9197469
C27: Coefficient of Variation = (Total Standard Deviation)/(E(Reserves)) | G27: =G26/C20 -> 0.01388751581 | H27: <<< ANSWER
